Cogmind - Beta 15 @@@ ROGUE MODE // 2025.09.01 @ 16:21:31 Player: JTMusky Result: Destroyed by G-34 Mercenary with Small Laser Performance ------------- Evolutions (0) 0 Regions Visited (1) 200 Robots Destroyed (19) 95 Value Destroyed (450) 450 Prototype IDs (0) 0 Alien Tech Used (0) 0 Bonus (0) 0 TOTAL SCORE: 745 Bonus ------- None Cogmind --------- Core Integrity 0/250 Matter 34/300 Energy 100/100 System Corruption 3% Temperature Cool (6) Movement Core (100) Ox1 Location -10/Materials Parts ------- > --- POWER (1) -------- (None) > --- PROPULSION (2) --- (None) > --- UTILITY (2) ------ Small Storage Unit Signal Interpreter > --- WEAPON (2) ------- (None) > --- INVENTORY (8) ---- Improved Ion Engine Structural Scanner Sensor Array Weapon Shielding Rocket Launcher Mini Grenade Launcher Mini Grenade Launcher Peak State ------------ > --- POWER ------------ Improved Ion Engine > --- PROPULSION ------- Compact Wheel Compact Wheel > --- UTILITY ---------- Small Storage Unit Weapon Shielding > --- WEAPON ----------- Rocket Launcher Mini Grenade Launcher > --- INVENTORY -------- Improved Ion Engine Light Treads Light Treads Rocket Launcher Rocket Launcher Mini Grenade Launcher Mini Grenade Launcher [Rating: 11] Favorites ----------- Power Ion Engine Engine Ion Engine Propulsion Compact Wheel Treads Light Treads Wheel Compact Wheel Utility Small Storage Unit Storage Small Storage Unit Processor Signal Interpreter Protection Weapon Shielding Weapon Mini Grenade Launcher Ballistic Gun Assault Rifle Launcher Mini Grenade Launcher Build | -11 -10 ------- Run | Yrd Mat Slots Evolved . | . . Power . | . . Propulsion . | . . Utility . | . . Weapon . | . . Parts Attached 14 | 7 7 Power 2 | 1 1 Engine 2 | 1 1 Core . | . . Reactor . | . . Propulsion 4 | 3 1 Treads 2 | 1 1 Leg . | . . Wheel 2 | 2 . Hover . | . . Flight . | . . Utility 3 | 1 2 Device . | . . Storage 1 | 1 . Processor 1 | . 1 Hackware . | . . Protection 1 | . 1 Artifact . | . . Weapon 5 | 2 3 Energy Gun . | . . Energy Cannon . | . . Ballistic Gun 2 | 2 . Ballistic Cannon . | . . Launcher 3 | . 3 Special Weapon . | . . Impact Weapon . | . . Slashing Weapon . | . . Piercing Weapon . | . . Special Melee Weapon . | . . Unidentified Prototypes . | . . Parts Lost 4 | . 4 Power 1 | . 1 Propulsion 1 | . 1 Utility . | . . Weapon 2 | . 2 Highest Loss Streak 2 | . 2 To Critical Strikes . | . . Average Backups 6 | 5 7 Power . | . 1 Propulsion 2 | 3 1 Utility . | . 1 Weapon 2 | . 3 Tool/Special . | . . Unused Backups 10 | . 10 Power 2 | . 2 Propulsion 2 | . 2 Utility 2 | . 2 Weapon 4 | . 4 Tool/Special . | . . Average Slot Usage (%) 85 | . 85 Engine 4 | . 4 Treads 9 | . 9 Wheel 17 | . 17 Storage 14 | . 14 Processor 5 | . 5 Protection 7 | . 7 Launcher 25 | . 25 Peak Build Rating 11 | 6 11 Average Rating 8 | 5 9 On Entrance 3 | . 6 Naked Turns . | . . Heaviest Build 18 | 14 18 Greatest Support 40 | 32 40 Greatest Overweight (x) 3 | 2 3 Average Overweight (x) . | . . Largest Inventory Capacity 8 | 8 8 Average Capacity 7 | 7 8 Most Carried 8 | 6 8 Average Carried 6 | 5 7 Final Capacity 8 | 8 8 Final Carried 7 | 6 7 Class Distribution -------------------- 100% | Mutant Dominant Class ---------------- Mutant | -10/Materials Resources | -11 -10 ----------- Run | Yrd Mat Matter Collected 554 | 203 351 Remotely . | . . Salvage Created 406 | . 406 Parts 22 | . 22 Haulers Intercepted 2 | . 2 Recyclers Shooed 3 | . 3 Parts Field Recycled . | . . Retrieved Matter . | . . Parts Self-Destructed . | . . Prevented . | . . Kills | -11 -10 ------- Run | Yrd Mat Combat Hostiles Destroyed 7 | . 7 AOE 7 | . 7 Classes Destroyed 7 | . 7 Worker 3 | . 3 Builder 1 | . 1 Hauler 2 | . 2 Recycler 4 | . 4 Watcher 2 | . 2 Swarmer 3 | . 3 Grunt 4 | . 4 Best Kill Streak 8 | . 8 Combat Bots Only 5 | . 5 Max Kills in Single Turn 2 | . 2 Gunslinging . | . . Exploded 2 | . 2 Melee . | . . Uniques/NPCs Destroyed . | . . Combat | -11 -10 -------- Run | Yrd Mat Hostile Shots Fired 97 | . 97 Missed 38 | . 38 Hits 59 | . 59 Projectile 59 | . 59 Damage Taken 949 | . 949 Core 254 | . 254 Absorbed by Shields . | . . Redirected to Shielding 38 | . 38 Core Remaining (%) 100 | 100 . Volleys Fired 47 | . 47 Largest 1 | . 1 Hottest 33 | . 33 Shots Fired 48 | . 48 Gun . | . . Cannon . | . . Launcher 48 | . 48 Special . | . . Kinetic . | . . Thermal . | . . Explosive 48 | . 48 Electromagnetic . | . . Robot Hit Streak 2 | . 2 Robot Miss Streak 2 | . 2 Penetration Max . | . . Secondary Targets . | . . Shots Hit Robots 10 | . 10 Core Hits 29 | . 29 Critical Kills . | . . Critical Parts Destroyed . | . . Critical Strikes . | . . Melee Attacks . | . . Impact . | . . Slashing . | . . Piercing . | . . Sneak Attacks . | . . Combat Hostiles . | . . Follow-up Attacks . | . . Damage Inflicted 1596 | . 1596 Guns . | . . Cannons . | . . Explosions 1585 | . 1585 Melee . | . . Ramming 11 | . 11 Kinetic . | . . Thermal . | . . Explosive 1585 | . 1585 Electromagnetic . | . . Impact . | . . Slashing . | . . Piercing . | . . Highest Corruption 3 | . 3 Average Corruption 1 | . 1 Corruption Purged . | . . Corruption Blocked . | . . Effects 9 | . 9 Message Errors 2 | . 2 Energy Discharges 2 | . 2 Parts Rejected 1 | . 1 Data Loss (minor) 1 | . 1 Data Loss (major) 1 | . 1 Misfires 1 | . 1 Alerts 1 | . 1 Overload Shots . | . . Overflow Damage 94 | . 94 Projectiles . | . . Explosions 94 | . 94 Melee . | . . Knockbacks . | . . Impact . | . . Kinetic . | . . Secondary . | . . Self-Inflicted Damage 266 | . 266 Shots 8 | . 8 Rammed 5 | . 5 Targets Rammed 5 | . 5 Kicked . | . . Crushed . | . . Highest Temperature 8 | . 8 Average Temperature 4 | . 4 Received Heat Transfer 372 | . 372 Siege Activations . | . . Martial Activations . | . . Shielding Activations . | . . Robots Disrupted . | . . Combat Hostiles . | . . Robots Corrupted . | . . Combat Hostiles . | . . Parts Fried . | . . Impact Corruptions . | . . Robots Melted . | . . Combat Hostiles . | . . Parts Melted . | . . Heat Transferred . | . . Parts Sabotaged . | . . Parts Stolen . | . . Parts Stripped . | . . Power Chain Reactions . | . . Alert | -11 -10 ------- Run | Yrd Mat Maximum Alert Level 2 | . 2 Low Security (%) 43 | 100 24 Level 1 18 | . 25 Level 2 37 | . 50 Level 3 . | . . Level 4 . | . . Level 5 . | . . High Security . | . . Max Security . | . . Peak Influence 560 | . 560 Initial . | . . Average 265 | . 355 Influence Increases 780 | . 780 Destroy 0b10 Robot/C 140 | . 140 Destroy 0b10 Robot/NC 60 | . 60 Destroy Leader 38 | . 38 Select Force Hacks 50 | . 50 Disable Machine 195 | . 195 Destroy Structure 297 | . 297 Influence Decreases 336 | . 336 Time Decay 296 | . 296 Lost Part 40 | . 40 Squads Dispatched 1 | . 1 Investigation 1 | . 1 Extermination . | . . Reinforcement . | . . Assault . | . . Garrison . | . . Intercept . | . . Searches Triggered . | . . Construction Impeded . | . . Haulers Reinforced . | . . Active Scanning Responses . | . . Cargo Convoy Interrupts . | . . Stealth | -11 -10 --------- Run | Yrd Mat Distress Signals 1 | . 1 Communications Jammed . | . . Distress Signals . | . . Times Spotted 19 | . 19 Peak Tracking Total 5 | . 5 Tactical Retreats . | . . Traps | -11 -10 ------- Run | Yrd Mat Traps Triggered 2 | . 2 Indirectly . | . . Trap Hack Attempts . | . . Triggered . | . . Disarmed . | . . Reprogrammed . | . . Reused . | . . Traps Extracted . | . . Installed . | . . Triggered . | . . Machines | -11 -10 ---------- Run | Yrd Mat Machines Disabled 13 | . 13 Max in Single Turn 4 | . 4 Machines Repaired . | . . Machines Dismantled . | . . Machines Sabotaged 1 | . 1 Overloaded Fab Kills . | . . Hacking | -11 -10 --------- Run | Yrd Mat Machines Accessed 3 | . 3 Terminals 3 | . 3 Fabricators . | . . Repair Stations . | . . Recycling Units . | . . Scanalyzers . | . . Garrison Access . | . . Total Hacks 6 | . 6 Successful 2 | . 2 Failed 4 | . 4 Catastrophic 1 | . 1 Database Lockouts . | . . Manual 1 | . 1 Terminals 6 | . 6 Fabricators . | . . Repair Stations . | . . Recycling Units . | . . Scanalyzers . | . . Garrison Access . | . . Terminal Hacks 1 | . 1 Zone Layout 1 | . 1 Fabricator Hacks . | . . Repair Station Hacks . | . . Recycling Unit Hacks . | . . Scanalyzer . | . . Garrison Access Hacks . | . . Unauthorized Hacks 1 | . 1 Terminals 1 | . 1 Sabotage 1 | . 1 Fabricators . | . . Repair Stations . | . . Recycling Units . | . . Scanalyzers . | . . Garrison Access . | . . Data Cores Recovered . | . . Used . | . . Hacking Detections 3 | . 3 Full Trace Events . | . . Feedback Events . | . . Feedback Blocked . | . . Robot Schematics Acquired . | . . Robots Built . | . . Authchips . | . . Time . | . . Total Robot Build Rating . | . . Part Schematics Acquired . | . . Parts Built . | . . Authchips . | . . Time . | . . Total Part Build Rating . | . . Parts Repaired . | . . Time . | . . Parts Recycled . | . . Recycled Matter . | . . Retrieved Matter . | . . Retrieved Components . | . . Parts Scanalyzed . | . . Part Schematics Acquired . | . . Parts Damaged . | . . Bothacking | -11 -10 ------------ Run | Yrd Mat Used RIF Installer . | . . Robots Hacked . | . . Non-combat . | . . Combat . | . . Robot Hacks Applied . | . . Relay Couplers Released . | . . Fabnet Peak Effective % . | . . Robots Rewired . | . . Allies Hacked . | . . Hacks Repelled . | . . Allies | -11 -10 -------- Run | Yrd Mat Total Allies . | . . Largest Group . | . . Highest-Rated Group . | . . Highest-Rated Ally . | . . Total Orders . | . . Ally Attacks . | . . Total Damage . | . . Kills . | . . Allies Corrupted . | . . Allies Melted . | . . Intel | -11 -10 ------- Run | Yrd Mat Active Infowar (turns) . | . . Robot Analysis Total . | . . Derelict Logs Recovered . | . . Drone Launches . | . . Drone Recoveries . | . . Exploration | -11 -10 ------------- Run | Yrd Mat Turns Passed 1069 | 269 800 Spaces Moved 624 | 50 574 Core 14 | 9 5 Treads 161 | . 161 Legs . | . . Wheels 449 | 41 408 Hover . | . . Flight . | . . Fastest Speed 50 | 50 100 Average Speed 115 | 95 117 Slowest Speed 200 | 150 200 Overloaded Moves . | . . Propulsion Burnouts . | . . Robots Hopped . | . . Potential Cave-ins . | . . Cave-ins Triggered . | . . Exploration Rate (%) 37 | 5 69 Regions Visited 1 Branch Regions . Pre-discovered Areas . | . . Known Exits Taken . | . . Unknown Exits Taken 1 | 1 . Scrap Searched . | . . Spaces Dug 13 | . 13 Terrain Destroyed 387 | . 387 Melee . | . . Projectile . | . . AOE 387 | . 387 Terrain Rammed . | . . Walls Destroyed . | . . Machines Disabled . | . . Actions | -11 -10 --------- Run | Yrd Mat Total 927 | 268 659 Wait 206 | 206 . Move 623 | 49 574 Hop . | . . Pick Up 13 | 5 8 Fast Attach 13 | 7 6 Attach 1 | . 1 Detach 6 | 1 5 Swap 1 | . 1 Drop 12 | . 12 Fire 47 | . 47 Melee . | . . Ram 5 | . 5 Kick . | . . Crush . | . . Escape Stasis . | . . Rewire . | . . Trap . | . . Miscellaneous . | . . Route ------- -11/Scrapyard -10/Materials (discovered 2 exits: [*Mat] / *Min) History --------- Turn | Location | Event 38 | -11/Scrapyard | Discovered new exit (range 14) 270 | -11/Scrapyard | Entered Materials 351 | -10/Materials | Build established: Mutant 587 | -10/Materials | Discovered new exit (range 9) 742 | -10/Materials | Discovered new exit (range 8) 769 | -10/Materials | Identified exit to Mines 1023 | -10/Materials | Core integrity fell below 50% 1067 | -10/Materials | Core integrity fell below 20% 1070 | -10/Materials | Destroyed by G-34 Mercenary with Small Laser Last Messages --------------- 00942_ K-01 Serf collects debris. 00956_ K-01 Serf cleans the Electrolysis Chamber. 00957_ K-01 Serf collects debris. 00962_ System corrupted: Energy discharge (-38). 00962_ K-01 Serf cleans the Electrolysis Chamber. 00978_ U-05 Engineer lays Concrete. 00980_ U-05 Engineer builds a Wall. 00984_ U-05 Engineer lays Concrete. 00987_ U-05 Engineer builds a Wall. 00991_ U-05 Engineer lays Concrete. 00994_ U-05 Engineer builds a Wall. 00998_ U-05 Engineer lays Concrete. 01004_ Rocket Launcher destroyed. 01005_ U-05 Engineer lays Concrete. 01008_ U-05 Engineer builds a Wall. 01012_ U-05 Engineer lays Concrete. 01025_ Mni. Grenade Launcher destroyed. 01057_ Lgt. Treads destroyed. 01061_ System corrupted: Lgt. Treads rejected. 01064_ Slammed into G-34 Mercenary. Map ----- +----------------------------------------------------+ | ????????????????? ???? ?????????????????##### | | ?????????????? ???? ???????????????### | | ?????????????? ^ ??? ???????????????# | | ?????????????## #??# #????????????????# | | ????????????## ?# #???????????????# | | ????????????# % ?# #???????????????# | | ???????????## ## #???????????????## | | ??????????? ## # #????????????????## | | ??????????? # ##?????????###########? | | ?????????? # # ## ##?????????# ! ! ## | | ?????????? ## # ###????????# # | | ????????? # # # #????????# """ """ # | | ???????????# # # #????????# """ """ +^ | | ????????????# # # ##???????# """ """ # | | ?????????????## # # #???????# """ """ # | | ??????????????###### # # ########## """ """ ## | | ???????????????????## # # # # # | | ????????????????????# # # ######### | | ???????????????????## # ###############??????# | | ???????????????????# ### # #??????# | | ???????????????????### # g# #??????## | | ????????????????????# # g # #???????# | | ????????????????????# # + = #???????? | | ??????????????####### # # #???##### | | ??????????????# # # #?# | | ??????????????# # @ #+######### ##?# | | ??????????????# #g # ???# | | ??????????????# # # #????# | | ??????????????# t + ??????# | | ??????????????# # #? ??????# | | ??????????????# w###########??# | | ??????????????# ^ #??# | | ??????????????# ^ #??# | | ??????????????########## ######## | | ??????????????????????# # #####+## | | ??????????????????????## # ## ! # | | ??????????????????????# # # # | | ??????????????????????#### # " # #### | | ??????????????????????## " ## #??##### | | ??????????????????????# "Y ## " # #??????? | | ??????????????????????##"" ## #??????? | | ???????????????????????### #### #??????? | | ?????????????????????????# #??# ## #??????? | | ?????????????????????????# ####??# # #??????? | | ?????????????????????????# #?????# #??????? | | ?????????????????????????# #?????# #####??? | | ?????????????????????????# #?????## # ??? | | ????????????????????????##+######## # # ""??? | | ????????????????????????# ## # # R??? | | ????????????????????????# """ T ## # # ""??? | +----------------------------------------------------+ Best States ------------- Heat Dissipation 25 Energy Generation 12 Energy Capacity 265 Matter Stores 257 Matter Capacity 300 Sight Range 16 Terrain Scan Density 10 Weapon Shielding 33 Evasion (%) 50 Recoil Reduction 2 Item Schematics ----------------- None Robot Schematics ------------------ None Fabricated ------------ Nothing Repaired ---------- Nothing Alien Tech Used ----------------- None Achievements -------------- Maybe Next Time I'll Detach My Launcher Challenges ------------ None Game ------ Seed RainbowDefensePenetrator Manual? 0 Play Time 00:17:07 Cumulative 38.2 hours Start 2025.09.01 @ 15:55:53 End 2025.09.01 @ 16:21:31 Sessions 6 Manual Loads 0 Difficulty Rogue Special Mode None Game No. 51 Rogue 51 Adventurer 0 Explorer 0 Win Type - Total 0 Types 0/0/0/0/0/0/0/0/0/0 Lore% 14 Gallery% 17 Achievement% 19 Wizard Run 0 Options --------- Layout 2 ASCII 1 Keyboard 1 Movement Vi Keybinds 1 Fullscreen 2 Font 20/SmallcapsGlow Map View 28x27 Zoom Use 78% Tactical HUD 1 Map Filters NONE Filters NONE Steam 0 RUN: 112e121c-b02f-426e-8c4b-f582a9e373fb